bitfinex-derivatives/quotes_SOLF0:USTF0_20260202
["timestamp","ask_amount","ask_price","bid_price","bid_amount"]
[1770023492596,17.20538704,101.88,101.82,14.50517293]
[1770023493394,8.8451,101.87,101.82,14.50517293]
[1770023494997,22.96256355,101.87,101.82,14.50517293]
[1770023497294,14.11746355,101.87,101.82,23.35437293]
[1770023497604,3.08792349,101.88,101.82,23.35437293]
[1770023498199,17.56379491,101.88,101.82,23.35437293]
[1770023498400,26.40799491,101.88,101.82,23.35437293]
[1770023498595,26.40799491,101.88,101.82,14.50517293]
[1770023498596,14.47587142,101.87,101.82,14.50517293]
[1770023498800,14.47587142,101.87,101.81,8.8501]
[1770023499101,14.47587142,101.87,101.82,14.55312427]
[1770023499703,17.56379491,101.89,101.83,14.55312427]
[1770023500301,23.31997142,101.88,101.82,8.8491]
[1770023500700,23.31997142,101.88,101.82,23.40222427]
[1770023504302,23.31997142,101.88,101.82,41.69933212]
[1770023505200,14.47587142,101.88,101.83,8.8483]
[1770023505402,14.47587142,101.88,101.83,23.40142427]
[1770023507305,14.41052869,101.87,101.82,27.14630785]
[1770023507507,14.41052869,101.87,101.82,22.1000164]
[1770023509104,14.41052869,101.87,101.82,8.8492]
[1770023509306,14.41052869,101.87,101.82,22.1000164]
[1770023511012,14.41052869,101.87,101.82,40.39712425]
[1770023512015,23.25562869,101.87,101.82,31.54792425]
[1770023512212,23.25562869,101.87,101.82,13.2508164]
[1770023512713,23.25562869,101.87,101.82,31.54792425]
[1770023512915,23.25562869,101.87,101.82,40.39702425]
[1770023516515,23.25562869,101.87,101.83,18.29710785]
[1770023519321,23.25562869,101.87,101.84,18.29710785]
[1770023522124,14.41052869,101.87,101.84,18.29710785]
[1770023522322,14.41052869,101.87,101.85,18.29710785]
[1770023522522,325.1584,101.91,101.85,18.29710785]
[1770023522523,14.41052869,101.89,101.85,18.29710785]
[1770023522723,26.33929173,101.91,101.86,13.2508164]
[1770023522918,17.49779173,101.91,101.86,31.54792425]
[1770023523118,17.49779173,101.91,101.86,13.2508164]
[1770023523313,14.41052869,101.9,101.85,18.29710785]
[1770023523519,3.08726304,101.89,101.84,40.39462425]
[1770023526118,14.41052869,101.88,101.84,18.29710785]
[1770023526325,3.08726304,101.85,101.79,13.2508164]
[1770023526922,17.49779173,101.83,101.75,13.2508164]
[1770023527122,3.08726304,101.81,101.76,13.2508164]
[1770023527320,3.08726304,101.81,101.72,13.2508164]
[1770023527321,14.41052869,101.8,101.72,13.2508164]
[1770023527529,3.08726304,101.77,101.72,13.2508164]
[1770023527821,17.49779173,101.79,101.72,13.2508164]
[1770023528020,17.49779173,101.79,101.73,13.82664869]
[1770023528215,3.08726304,101.82,101.75,13.82664869]
[1770023528416,3.08726304,101.82,101.75,16.91391173]
[1770023529026,3.08726304,101.82,101.77,13.82664869]
[1770023529223,17.31166342,101.84,101.77,16.91391173]
[1770023529423,17.31166342,101.84,101.78,8.8526]
[1770023529627,26.15816342,101.86,101.79,13.82664869]
[1770023529827,17.31166342,101.86,101.79,16.91391173]
[1770023530029,17.31166342,101.86,101.8,8.8509]
[1770023530727,26.15626342,101.88,101.81,13.82664869]
[1770023531225,26.15466342,101.9,101.83,16.91391173]
[1770023531626,14.22440038,101.89,101.83,16.91391173]
[1770023532629,14.22440038,101.89,101.83,13.82664869]
[1770023532827,3.08726304,101.88,101.83,13.82664869]
[1770023533329,26.15586342,101.88,101.82,13.82664869]
[1770023534127,17.31166342,101.88,101.82,13.82664869]
[1770023535127,26.15596342,101.88,101.82,13.82664869]
[1770023535328,3.08726304,101.86,101.8,13.82664869]
[1770023535531,17.31166342,101.86,101.8,13.82664869]
[1770023535929,26.15776342,101.86,101.8,13.82664869]
[1770023536331,26.15776342,101.86,101.78,13.82664869]
[1770023536332,3.08726304,101.84,101.78,13.82664869]
[1770023537443,3.08726304,101.84,101.78,22.67914869]
[1770023539540,17.31166342,101.86,101.79,22.67844869]
[1770023539941,17.31166342,101.88,101.8,13.82664869]
[1770023540242,26.15576342,101.88,101.81,13.82664869]
[1770023541234,26.15576342,101.88,101.81,16.91391173]
[1770023541536,23.06940038,101.87,101.81,13.82664869]
[1770023541736,17.31166342,101.86,101.79,16.91391173]
[1770023543343,8.8468,101.85,101.79,13.82664869]
[1770023543539,17.31166342,101.86,101.79,22.67834869]
[1770023544045,23.07020038,101.86,101.8,13.82664869]
[1770023544248,14.22440038,101.86,101.8,22.67754869]
[1770023545247,14.22440038,101.86,101.8,13.82664869]
[1770023546747,14.22440038,101.86,101.8,32.05847295]
[1770023547043,8.8468,101.85,101.8,13.82664869]
[1770023547748,8.8479,101.84,101.79,18.23182426]
[1770023547949,14.22440038,101.83,101.77,18.23182426]
[1770023548751,8.8495,101.82,101.77,18.23182426]
[1770023550452,23.07280038,101.83,101.78,13.82664869]
[1770023551447,30.79171225,101.83,101.76,8.8544]
[1770023551655,8.8493,101.82,101.76,13.82664869]
[1770023552642,21.94331225,101.83,101.76,22.68104869]
[1770023552842,21.94331225,101.85,101.78,13.82664869]
[1770023553148,14.22440038,101.85,101.79,13.82664869]
[1770023553449,14.22440038,101.85,101.79,32.05847295]
[1770023553651,14.22440038,101.85,101.79,13.82664869]
[1770023554049,14.22440038,101.84,101.77,432.79137295]
[1770023554854,8.8484,101.83,101.77,423.93847295]
[1770023555343,8.8484,101.83,101.77,405.70664869]
[1770023557246,23.07370038,101.82,101.77,391.88]
[1770023557448,23.07370038,101.82,101.76,32.05847295]
[1770023558947,23.07370038,101.82,101.76,13.82664869]
[1770023559153,23.07370038,101.82,101.76,32.05847295]
[1770023560054,14.22440038,101.82,101.76,40.91247295]
[1770023561556,13.52742012,101.84,101.77,22.68566637]
[1770023561755,13.52742012,101.84,101.78,13.83216637]
[1770023561960,158.83493199,101.87,101.79,13.83216637]
[1770023562255,13.52742012,101.86,101.79,13.83216637]
[1770023562954,8.8467,101.85,101.79,13.83216637]
[1770023564355,8.8467,101.85,101.79,22.68386637]
[1770023564956,8.8467,101.85,101.79,13.83216637]
[1770023565157,13.52742012,101.83,101.77,13.83216637]
[1770023565656,22.37662012,101.83,101.77,13.83216637]
[1770023566358,3.09074775,101.82,101.77,13.83216637]
[1770023567457,11.94004775,101.82,101.77,13.83216637]
[1770023570157,3.09074775,101.82,101.77,13.83216637]
[1770023573850,3.09074775,101.82,101.77,22.68566637]
[1770023574557,3.09074775,101.84,101.79,13.94973605]
[1770023575360,8.8473,101.85,101.79,13.94973605]
[1770023575661,8.8478,101.84,101.79,13.94973605]
[1770023575862,14.05027453,101.84,101.78,18.23182426]
[1770023576157,14.05027453,101.84,101.77,409.0004838]
[1770023576158,3.09074775,101.82,101.77,32.18156031]
[1770023576466,17.14102228,101.82,101.77,32.18156031]
[1770023576860,25.99032228,101.82,101.76,18.23182426]
[1770023577267,22.89957453,101.82,101.77,13.94973605]
[1770023577754,25.99122228,101.81,101.76,18.23182426]
[1770023578056,14.05027453,101.8,101.75,32.18156031]
[1770023578464,22.90127453,101.8,101.75,13.94973605]
[1770023579060,25.99202228,101.8,101.74,18.23182426]
[1770023579469,25.99202228,101.8,101.74,32.18156031]
[1770023579868,22.90127453,101.8,101.74,41.03766031]
[1770023580369,8.8501,101.81,101.75,13.94973605]
[1770023580570,8.8501,101.81,101.75,32.18156031]
[1770023580964,22.89957453,101.82,101.76,13.94973605]
[1770023581268,22.89957453,101.82,101.76,32.18156031]
[1770023582765,22.89957453,101.82,101.77,18.23182426]
[1770023582961,8.8502,101.81,101.77,18.23182426]
[1770023583470,8.8502,101.81,101.76,32.18156031]
[1770023583670,22.90047453,101.81,101.76,32.18156031]
[1770023584566,8.8492,101.82,101.77,32.18156031]
[1770023584763,14.05027453,101.83,101.77,32.18156031]
[1770023585676,14.05027453,101.83,101.78,13.94973605]
[1770023586172,22.89867453,101.83,101.78,32.18156031]
[1770023588272,22.89867453,101.83,101.79,18.23182426]
[1770023589974,14.28701386,101.85,101.79,31.71823345]
[1770023590270,14.28701386,101.87,101.81,18.23182426]
[1770023591262,8.8459,101.86,101.81,18.23182426]
[1770023592774,14.28701386,101.89,101.83,13.48640919]
[1770023593573,14.28701386,101.89,101.81,13.48640919]
[1770023593772,23.13181386,101.88,101.82,8.849]
[1770023593966,23.13181386,101.88,101.82,22.33540919]
[1770023594363,8.8449,101.87,101.82,13.48640919]
[1770023595876,23.13111386,101.88,101.82,13.48640919]
[1770023596379,14.28701386,101.87,101.82,13.48640919]
[1770023596578,8.8441,101.88,101.82,13.48640919]
[1770023596878,23.13111386,101.88,101.82,13.48640919]
[1770023600382,26.21814002,101.88,101.82,13.48640919]
[1770023601180,3.08702616,101.88,101.83,13.48640919]
[1770023601982,3.08702616,101.88,101.83,22.33460919]
[1770023602882,8.8434,101.89,101.83,22.33460919]
[1770023603083,26.21744002,101.89,101.83,22.33460919]
[1770023607085,23.13111386,101.88,101.83,13.48640919]
[1770023608889,26.21924002,101.87,101.81,13.48640919]
[1770023609087,17.37404002,101.87,101.81,13.48640919]
[1770023609278,23.13351386,101.86,101.79,25.42493535]
[1770023609483,17.37404002,101.85,101.79,22.33790919]
[1770023609791,26.22084002,101.85,101.79,22.33790919]
[1770023610182,26.22084002,101.85,101.79,13.48640919]
[1770023611083,17.37404002,101.83,101.77,13.48640919]
[1770023612486,26.22244002,101.83,101.77,13.48640919]
[1770023612986,14.28701386,101.82,101.77,13.48640919]
[1770023614288,14.28701386,101.82,101.77,22.33970919]
[1770023614489,3.08702616,101.83,101.77,22.33970919]
[1770023614786,17.37404002,101.83,101.77,22.33970919]
[1770023617186,14.28701386,101.82,101.76,13.48640919]
[1770023617380,3.08702616,101.81,101.76,13.48640919]
[1770023617684,17.37404002,101.82,101.76,13.48640919]
[1770023618289,17.37404002,101.82,101.76,22.34080919]
[1770023618489,3.08702616,101.82,101.77,14.00588085]
[1770023619891,11.93552616,101.83,101.77,22.85918085]
[1770023621992,3.08702616,101.82,101.77,22.85918085]
[1770023623392,3.08702616,101.82,101.78,14.00588085]
[1770023623787,16.49750548,101.86,101.79,14.00588085]
[1770023623989,16.49750548,101.86,101.8,14.00588085]
[1770023624386,3.08702616,101.87,101.82,14.00588085]
[1770023625387,3.08702616,101.87,101.83,8.8482]
[1770023625784,13.41047932,101.88,101.82,14.00588085]
[1770023625989,3.08702616,101.87,101.82,14.00588085]
[1770023626591,16.49750548,101.87,101.82,14.00588085]
[1770023627291,25.34250548,101.87,101.82,14.00588085]
[1770023629093,23.08063704,101.86,101.8,32.25246458]
[1770023629297,14.23483704,101.85,101.8,14.02064032]
[1770023629599,17.3218632,101.85,101.79,14.02064032]
[1770023630096,26.1685632,101.85,101.79,22.87234032]
[1770023630295,26.1685632,101.85,101.8,14.02064032]
[1770023630499,17.3218632,101.85,101.8,14.02064032]
[1770023630695,17.3218632,101.87,101.81,14.02064032]
[1770023631200,17.3218632,101.85,101.79,41.10356458]
[1770023631397,14.23483704,101.85,101.8,14.02064032]
[1770023632691,14.23483704,101.84,101.78,32.25246458]
[1770023632892,140.70532616,101.85,101.76,32.25246458]
[1770023632893,17.3218632,101.83,101.76,32.25246458]
[1770023634304,17.3218632,101.81,101.76,32.25246458]
[1770023634602,17.3218632,101.81,101.76,14.02064032]
[1770023634807,3.08702616,101.79,101.74,32.25246458]
[1770023635300,3.08702616,101.79,101.74,14.02064032]
[1770023637594,3.08702616,101.79,101.74,22.87654032]
[1770023637793,3.08702616,101.79,101.75,14.02064032]
[1770023638500,14.23483704,101.81,101.75,14.02064032]
[1770023638803,3.08702616,101.82,101.76,14.02064032]
[1770023639299,26.1707632,101.83,101.77,14.02064032]
[1770023640999,23.08403704,101.82,101.77,14.02064032]
[1770023641200,14.23483704,101.81,101.76,14.02064032]
[1770023641704,17.3218632,101.81,101.73,14.02064032]
[1770023641903,3.08702616,101.79,101.73,14.02064032]
[1770023642404,17.32766586,101.79,101.73,22.87754032]
[1770023642802,3.09282882,101.77,101.73,14.02064032]
[1770023643904,17.32766586,101.77,101.71,410.17182426]
[1770023644107,14.23483704,101.76,101.7,41.11136458]
[1770023644307,14.23483704,101.76,101.7,22.87954032]
[1770023644709,14.23483704,101.76,101.71,22.87944032]
[1770023645898,14.23483704,101.79,101.73,14.02064032]
[1770023646305,23.08773704,101.78,101.71,22.87894032]
[1770023646501,14.23483704,101.78,101.71,22.87894032]
[1770023646906,14.23483704,101.75,101.7,18.23182426]
[1770023647110,14.23483704,101.75,101.69,22.88054032]
[1770023647813,23.09033704,101.75,101.69,14.02064032]
[1770023648509,12.64178597,101.73,101.67,392.02]
[1770023648701,150.43378597,101.72,101.64,9.821]
[1770023648907,12.64178597,101.7,101.63,12.9192247]
[1770023649307,12.64178597,101.7,101.63,21.7849247]
[1770023649810,12.64178597,101.72,101.64,12.9192247]
[1770023650007,12.64178597,101.72,101.64,21.7839247]
[1770023650504,21.50078597,101.71,101.64,21.7839247]
[1770023650709,12.64178597,101.7,101.64,12.9192247]
[1770023650911,12.64178597,101.69,101.62,404.9992247]
[1770023651110,12.64178597,101.69,101.62,12.9192247]
[1770023652414,21.50238597,101.69,101.62,12.9192247]
[1770023652914,21.50348597,101.68,101.6,413.9075247]
[1770023653418,21.50348597,101.68,101.61,12.9192247]
[1770023656114,21.50348597,101.68,101.62,12.9192247]
[1770023660718,12.64178597,101.67,101.61,21.7866247]
[1770023661315,12.64178597,101.67,101.62,12.9192247]
[1770023663214,21.50238597,101.69,101.63,12.9192247]
[1770023663621,21.50238597,101.69,101.61,12.9192247]
[1770023664120,21.50238597,101.69,101.62,12.9192247]
[1770023664317,8.8616,101.68,101.62,12.9192247]
[1770023664516,15.74127313,101.67,101.62,12.9192247]
[1770023668329,15.74127313,101.67,101.61,8.8667]
[1770023668330,12.64178597,101.66,101.6,392.12]
[1770023668629,15.74127313,101.65,101.6,392.12]
[1770023669119,24.60547313,101.65,101.6,392.12]
[1770023670025,15.74127313,101.63,101.58,12.9192247]
[1770023672531,24.60707313,101.63,101.58,12.9192247]
[1770023672726,12.64178597,101.62,101.56,12.9192247]
[1770023672933,15.74127313,101.63,101.56,12.9192247]
[1770023673434,15.74127313,101.63,101.57,12.9192247]
[1770023673933,15.74127313,101.65,101.58,16.01871186]
[1770023675137,24.60537313,101.65,101.59,12.9192247]
[1770023676334,8.865,101.64,101.59,12.9192247]
[1770023679240,15.74127313,101.65,101.59,12.9192247]
[1770023679241,24.60537313,101.65,101.59,12.9192247]
[1770023679641,15.74127313,101.65,101.59,12.9192247]
[1770023679837,19.88030244,101.64,101.59,12.9192247]
[1770023682038,11.96358716,101.65,101.6,10.93942587]
[1770023682247,3.09948716,101.65,101.6,10.93942587]
[1770023683533,3.09948716,101.65,101.6,19.80772587]
[1770023684138,11.01530244,101.66,101.61,19.80692587]
[1770023684536,3.09948716,101.67,101.62,10.93942587]
[1770023684743,3.09948716,101.67,101.62,19.80602587]
[1770023685541,3.09948716,101.68,101.63,10.93942587]
[1770023685736,11.01530244,101.7,101.63,10.93942587]
[1770023686138,148.83410244,101.7,101.63,10.93942587]
[1770023686348,11.01530244,101.68,101.61,10.93942587]
[1770023686738,14.1147896,101.67,101.61,19.80692587]
[1770023686942,14.1147896,101.67,101.61,10.93942587]
[1770023687547,14.1147896,101.67,101.61,19.80682587]
[1770023688141,139.43433034,101.77,101.68,10.18434368]
[1770023688348,3.09948716,101.77,101.69,10.18434368]
[1770023688739,11.95268716,101.78,101.71,10.18434368]
[1770023689040,3.09948716,101.8,101.72,13.28383084]
[1770023689245,3.09948716,101.8,101.73,10.18434368]
[1770023690043,3.09948716,101.82,101.75,10.18434368]
[1770023690549,10.05870993,101.83,101.76,10.18434368]
[1770023691450,10.05870993,101.83,101.77,10.18434368]
[1770023692745,10.05870993,101.85,101.78,10.18434368]
[1770023694349,10.05870993,101.85,101.78,19.03674368]
[1770023694947,10.05870993,101.85,101.79,10.18434368]
[1770023697447,206.30410993,101.87,101.79,10.18434368]
[1770023698054,10.05870993,101.87,101.8,10.18434368]
[1770023698355,146.4167,101.89,101.81,17.90965774]
[1770023698356,10.05870993,101.89,101.81,17.90965774]
[1770023698553,10.05870993,101.89,101.82,10.18434368]
[1770023700251,10.05870993,101.91,101.84,10.18434368]
[1770023701052,10.05870993,101.9,101.82,10.18434368]
[1770023701553,10.05870993,101.87,101.8,10.18434368]
[1770023702059,10.05870993,101.86,101.8,10.18434368]
[1770023702459,10.05870993,101.89,101.81,10.18434368]
[1770023702657,10.05870993,101.88,101.81,19.03424368]
[1770023703254,10.05870993,101.87,101.81,10.18434368]
[1770023706358,18.90370993,101.87,101.81,10.18434368]
[1770023706557,10.05870993,101.86,101.79,19.03584368]
[1770023706757,10.05870993,101.86,101.79,10.18434368]
[1770023706954,10.05870993,101.84,101.78,10.18434368]
[1770023707355,10.05870993,101.84,101.76,236.22994685]
[1770023707559,10.05870993,101.83,101.76,236.22994685]
[1770023709361,10.05870993,101.83,101.76,245.08434685]
[1770023709661,10.05870993,101.83,101.77,9.17304822]
[1770023709860,10.05870993,101.83,101.77,18.02654822]
[1770023710959,8.8463,101.86,101.79,9.17304822]
[1770023711164,9.54767539,101.85,101.79,9.17304822]
[1770023711661,9.54767539,101.84,101.77,9.17304822]
[1770023712965,9.54767539,101.83,101.77,9.17304822]
[1770023713864,9.54767539,101.82,101.76,218.32877711]
[1770023714168,9.54767539,101.81,101.74,9.17304822]
[1770023714371,9.54767539,101.8,101.72,9.17304822]
[1770023714661,9.54767539,101.8,101.7,16.88987428]
[1770023714662,9.54767539,101.78,101.7,16.88987428]
[1770023714961,9.54767539,101.79,101.72,9.17304822]
[1770023715267,9.54767539,101.79,101.7,137.8166]
[1770023715268,8.8537,101.77,101.7,18.03194822]
[1770023715458,195.22767539,101.8,101.71,9.17304822]
[1770023715660,9.54767539,101.79,101.71,9.17304822]
[1770023716461,18.40037539,101.79,101.72,8.8578]
[1770023716656,9.54767539,101.78,101.71,9.17304822]
[1770023717058,18.40137539,101.77,101.71,9.17304822]
[1770023717258,9.54767539,101.76,101.69,9.17304822]
[1770023717463,9.54767539,101.75,101.67,16.88987428]
[1770023717766,9.54767539,101.75,101.67,25.75217428]
[1770023718064,9.54767539,101.75,101.67,18.03534822]
[1770023718470,9.54767539,101.74,101.67,9.17304822]
[1770023718966,18.40217539,101.76,101.68,18.03404822]
[1770023721563,18.40107539,101.78,101.7,9.17304822]
[1770023721768,9.54767539,101.78,101.7,9.17304822]
[1770023723365,9.54767539,101.78,101.71,8.8588]
[1770023723563,9.54767539,101.78,101.71,18.03184822]
[1770023725267,18.40067539,101.78,101.71,18.03184822]
[1770023725674,9.54767539,101.77,101.69,25.74967428]
[1770023725873,9.54767539,101.77,101.69,18.03284822]
[1770023726174,9.54767539,101.77,101.7,9.17304822]
[1770023727377,18.40127539,101.77,101.7,18.03254822]
[1770023730273,18.40127539,101.77,101.71,9.17304822]
[1770023730478,9.54767539,101.79,101.72,9.17304822]
[1770023730780,8.8516,101.8,101.73,9.17304822]
[1770023731478,18.39947539,101.79,101.73,9.17304822]
[1770023735478,18.39847539,101.81,101.74,9.17304822]
[1770023736177,9.54767539,101.79,101.73,8.8562]
[1770023736382,9.54767539,101.79,101.73,18.02924822]
[1770023737378,18.39967539,101.79,101.73,18.02924822]
[1770023740280,9.54767539,101.79,101.74,8.8561]
[1770023740980,8.8512,101.8,101.75,8.3701607]
[1770023741285,8.85,101.82,101.76,8.3701607]
[1770023741483,17.15015883,101.82,101.76,8.3701607]
[1770023741685,8.8503,101.81,101.76,8.3701607]
[1770023742983,8.30015883,101.8,101.73,8.857]
[1770023743184,8.30015883,101.8,101.73,17.2271607]
[1770023744382,8.8522,101.79,101.73,17.2271607]
[1770023744681,17.15235883,101.79,101.73,17.2271607]
[1770023750579,8.30015883,101.79,101.72,18.23182426]
[1770023750786,8.3910525,101.81,101.75,8.23233646]
[1770023752182,8.3910525,101.81,101.75,26.46416072]
[1770023752387,8.3910525,101.81,101.75,8.23233646]
[1770023752978,8.8519,101.79,101.75,8.23233646]
[1770023753390,8.3910525,101.81,101.75,8.23233646]
[1770023754293,8.8511,101.8,101.75,8.23233646]
[1770023755191,8.8511,101.8,101.75,26.46416072]
[1770023756191,137.7113,101.78,101.7,24.24309424]
[1770023756386,7.71682606,101.77,101.7,12.91327228]
[1770023756594,145.44192606,101.77,101.7,12.91327228]
[1770023756786,146.5795,101.77,101.7,12.91327228]
[1770023756987,137.7251,101.77,101.7,12.91327228]
[1770023757382,8.8557,101.75,101.7,12.91327228]
[1770023758889,137.7251,101.77,101.7,12.91327228]
[1770023759593,8.8554,101.75,101.7,12.91327228]
[1770023760493,137.7251,101.77,101.7,12.91327228]
[1770023760692,332.46202606,101.8,101.71,12.8057671]
[1770023761289,8.8528,101.78,101.71,12.8057671]
[1770023761685,137.6668,101.82,101.72,12.80577484]
[1770023761895,7.71682606,101.84,101.77,12.80577484]
[1770023762491,7.71682606,101.84,101.78,12.89922931]
[1770023762688,137.6266,101.85,101.78,12.89922931]
[1770023762888,195.03682606,101.86,101.78,12.89922931]
[1770023763298,7.71682606,101.86,101.78,12.89922931]
[1770023763499,8.8467,101.85,101.78,21.75192931]
[1770023763701,8.8467,101.85,101.79,12.89924983]
[1770023765395,8.8493,101.82,101.76,12.58401051]
[1770023765892,145.32508639,101.86,101.76,12.58401051]
[1770023766095,145.32508639,101.86,101.77,12.55920407]
[1770023766600,8.8472,101.85,101.78,12.55920407]
[1770023766900,145.32508639,101.86,101.78,12.55920407]
[1770023767998,8.8475,101.84,101.78,21.41180407]
[1770023772497,16.56978639,101.86,101.79,12.40783063]
[1770023773802,8.8466,101.85,101.79,12.40783063]
[1770023774499,188.12,101.88,101.79,12.40783063]
[1770023774699,8.8441,101.88,101.83,8.54221118]
[1770023775094,7.72328639,101.9,101.83,8.54221118]
[1770023776306,8.8433,101.89,101.83,17.39061118]
[1770023779108,8.8433,101.89,101.83,8.54221118]
[1770023779607,8.8433,101.89,101.83,17.39051118]
[1770023782004,8.8423,101.9,101.84,17.54456807]
[1770023783005,7.72366059,101.95,101.88,7.92660583]
[1770023783606,16.56166059,101.95,101.88,16.77060583]
[1770023784111,7.72366059,101.93,101.86,7.92660583]
[1770023784301,7.72366059,101.92,101.84,7.92660583]
[1770023784500,7.72366059,101.92,101.81,7.92660583]
[1770023784501,7.72366059,101.89,101.81,7.92660583]
[1770023784707,7.72366059,101.89,101.82,7.92660583]
[1770023784905,16.56618639,101.9,101.82,7.92660583]
[1770023785210,16.56656059,101.9,101.82,7.92660583]
[1770023785410,7.72366059,101.9,101.83,8.8483]
[1770023785601,7.72366059,101.9,101.84,7.92660583]
[1770023786013,15.44694698,101.92,101.85,7.92660583]
[1770023786306,7.72366059,101.92,101.85,7.92660583]
[1770023786502,3.08491183,101.91,101.85,7.92660583]
[1770023787311,3.08491183,101.89,101.83,16.77420583]
[1770023787811,3.08491183,101.89,101.83,7.92660583]
[1770023788411,8.8423,101.89,101.83,7.92660583]
[1770023789111,16.55696846,101.91,101.83,7.92660583]
[1770023789310,8.8413,101.91,101.83,7.92660583]
[1770023790312,8.8413,101.91,101.84,7.92660583]
[1770023790512,16.56516059,101.9,101.84,7.92660583]
[1770023792008,16.56416059,101.92,101.85,7.92660583]
[1770023792713,8.8407,101.91,101.85,7.92660583]
[1770023794013,16.56436059,101.91,101.85,7.92660583]
[1770023795512,8.8414,101.9,101.85,7.92660583]
[1770023797118,16.56506059,101.9,101.82,7.92660583]
[1770023797419,16.56506059,101.9,101.83,16.77410583]
[1770023798722,16.56506059,101.9,101.84,8.42186022]
[1770023803426,7.71566846,101.91,101.84,8.42186022]
[1770023803427,17.09721145,101.89,101.84,8.42186022]
[1770023804528,8.8432,101.88,101.83,8.42186022]
[1770023807529,17.00639439,101.9,101.84,8.42186022]
[1770023807730,8.16439439,101.9,101.84,8.42186022]
[1770023808329,8.8441,101.87,101.81,34.82849991]
[1770023808532,11.93174897,101.87,101.81,16.75500885]
[1770023809130,11.93174897,101.87,101.82,7.90650885]
[1770023809534,20.16861405,101.87,101.82,7.90650885]
[1770023809830,3.08764897,101.88,101.83,7.90650885]
[1770023810131,8.36535627,101.91,101.84,7.90650885]
[1770023810326,3.08764897,101.92,101.86,7.90650885]
[1770023811328,3.08764897,101.9,101.84,25.97999991]
[1770023811534,11.47956738,101.9,101.84,7.90650885]
[1770023811733,11.47956738,101.88,101.82,25.97999991]
[1770023812031,11.47956738,101.88,101.82,7.90650885]
[1770023812835,8.8441,101.87,101.82,7.90650885]
[1770023813036,8.8441,101.87,101.82,25.97999991]
[1770023813237,8.8441,101.87,101.83,18.07349106]
[1770023813632,8.8441,101.87,101.82,25.97999991]
[1770023814336,20.32266738,101.88,101.83,18.07349106]
[1770023814532,137.5356,101.9,101.85,7.90650885]
[1770023814533,3.08764897,101.9,101.85,7.90650885]
[1770023814736,3.08764897,101.9,101.86,18.07349106]
[1770023815138,3.08764897,101.9,101.85,25.97999991]
[1770023815534,11.84367346,101.91,101.86,18.07349106]
[1770023816339,8.75602449,101.91,101.86,18.07349106]
[1770023817042,17.59652449,101.91,101.86,18.07349106]
[1770023817338,8.75602449,101.9,101.83,7.90650885]
[1770023818443,8.8423,101.89,101.83,16.75320885]
[1770023819345,8.8423,101.89,101.84,13.42441523]
[1770023819542,17.59742449,101.9,101.84,22.27081523]
[1770023819746,17.59742449,101.9,101.85,13.42441523]
[1770023820644,8.8414,101.9,101.85,13.42441523]
[1770023820843,8.8406,101.91,101.85,22.26981523]
[1770023821647,8.8415,101.9,101.85,13.42441523]
[1770023823149,145.24838562,101.9,101.81,13.3781529]
[1770023823349,137.5499,101.89,101.81,13.3781529]
[1770023823550,8.8449,101.86,101.81,13.3781529]
[1770023824046,16.55678562,101.88,101.81,13.3781529]
[1770023824240,137.505,101.93,101.82,13.33850822]
[1770023824241,145.21778562,101.93,101.82,13.33850822]
[1770023824444,145.21778562,101.93,101.83,13.33850822]
[1770023824747,8.8398,101.92,101.85,13.33850822]
[1770023825146,137.4919,101.94,101.86,13.33797017]
[1770023826547,8.839,101.93,101.86,22.18267017]
[1770023827054,8.8387,101.94,101.88,13.3744598]
[1770023827453,145.17793541,101.95,101.88,13.3744598]
[1770023827652,8.8388,101.93,101.88,13.3744598]
[1770023828354,8.8388,101.93,101.85,13.40533335]
[1770023828355,145.20773541,101.93,101.85,13.40533335]
[1770023829351,8.8406,101.91,101.85,13.40533335]
[1770023829743,137.5121,101.92,101.82,415.92309424]
[1770023830052,8.8424,101.89,101.83,13.40503782]
[1770023830352,8.8424,101.89,101.84,13.42522678]
[1770023830550,146.3658,101.91,101.84,13.42522678]
[1770023830949,137.5244,101.91,101.84,13.42522678]
[1770023831149,8.8417,101.9,101.84,13.42522678]
[1770023834555,145.19363541,101.94,101.85,13.43668521]
[1770023834749,137.4676,101.95,101.86,13.43668521]
[1770023836149,137.4676,101.95,101.85,137.5997]
[1770023836150,8.838,101.94,101.87,22.2852746]
[1770023836748,8.838,101.94,101.88,13.4412746]
[1770023837351,145.17563541,101.96,101.88,13.4412746]
[1770023837554,8.8371,101.95,101.89,13.44110985]
[1770023837853,137.4375,101.98,101.89,13.44110985]
[1770023838358,137.4428,101.97,101.9,13.44590614]
[1770023838553,137.455,101.96,101.87,13.44590614]
[1770023838948,137.4375,101.98,101.89,13.44575856]
[1770023839354,137.4391,101.97,101.89,13.44575856]
[1770023840357,11.91861536,101.96,101.9,13.4847541]
[1770023843160,3.08231536,101.96,101.9,22.3260541]
[1770023844752,3.08231536,101.96,101.91,13.52047062]
[1770023845060,3.08231536,101.98,101.92,13.52047062]
[1770023845456,3.08231536,101.96,101.9,13.52051732]